bitfinex/quotes_BTCUSD_20240818
["timestamp","ask_amount","ask_price","bid_price","bid_amount"]
[1724020128639,0.96748151,59599.0,59598.0,0.00886528]
[1724020128845,0.96748151,59599.0,59598.0,0.00286528]
[1724020129055,0.96748151,59599.0,59598.0,0.00086528]
[1724020129271,0.97048151,59599.0,59598.0,0.00086528]
[1724020129687,0.73257851,59599.0,59598.0,0.00086528]
[1724020131323,0.73557851,59599.0,59598.0,0.00086528]
[1724020132993,0.97048151,59599.0,59598.0,0.00086528]
[1724020133198,1.55575151,59599.0,59598.0,0.00086528]
[1724020133576,1.79065451,59599.0,59598.0,0.00086528]
[1724020133776,1.84074078,59599.0,59598.0,0.00086528]
[1724020133977,1.73440642,59599.0,59598.0,0.00086528]
[1724020134178,1.55575151,59599.0,59598.0,0.00086528]
[1724020134622,1.47085151,59599.0,59598.0,0.00086528]
[1724020134823,1.47885151,59599.0,59598.0,0.00186528]
[1724020135031,1.48085151,59599.0,59598.0,0.00286528]
[1724020135231,1.49077534,59599.0,59598.0,0.00286528]
[1724020135405,1.49077534,59599.0,59598.0,0.00186528]
[1724020135406,1.48277534,59599.0,59598.0,0.00186528]
[1724020135608,1.49077534,59599.0,59598.0,0.00286528]
[1724020145805,1.24594851,59599.0,59598.0,0.00286528]
[1724020150916,0.77614251,59599.0,59598.0,0.00286528]
[1724020151121,0.51659151,59599.0,59598.0,0.12031828]
[1724020151473,0.51659151,59599.0,59598.0,0.93533928]
[1724020151906,0.51659151,59599.0,59598.0,0.93433928]
[1724020151907,0.50859151,59599.0,59598.0,0.93433928]
[1724020152473,0.51659151,59599.0,59598.0,0.93433928]
[1724020152952,0.51659151,59599.0,59598.0,0.94433928]
[1724020153181,0.51659151,59599.0,59598.0,0.93433928]
[1724020153424,0.51659151,59599.0,59598.0,0.94533928]
[1724020153652,0.50659151,59599.0,59598.0,0.94433928]
[1724020154341,0.50759151,59599.0,59598.0,0.95333928]
[1724020159011,0.50437001,59599.0,59598.0,0.95333928]
[1724020159217,0.50742074,59599.0,59598.0,0.95333928]
[1724020160743,0.50742074,59599.0,59598.0,1.00357234]
[1724020160990,0.50642074,59599.0,59598.0,0.99457234]
[1724020161200,0.50642074,59599.0,59598.0,0.93333928]
[1724020161398,0.50742074,59599.0,59598.0,0.95333928]
[1724020161742,0.50741842,59599.0,59598.0,0.94233928]
[1724020162182,0.50741842,59599.0,59598.0,0.95633928]
[1724020162601,0.50641842,59599.0,59598.0,0.94733928]
[1724020163009,0.50741842,59599.0,59598.0,0.96133928]
[1724020167521,0.50741842,59599.0,59598.0,0.91333928]
[1724020168976,0.50741842,59599.0,59598.0,0.61613228]
[1724020169443,0.50437001,59599.0,59598.0,0.89903928]
[1724020169870,0.50743559,59599.0,59598.0,0.89903928]
[1724020170577,0.50743559,59599.0,59598.0,0.96083928]
[1724020170794,0.50743559,59599.0,59598.0,0.85103928]
[1724020171004,0.50437001,59599.0,59598.0,0.85103928]
[1724020171432,0.50743559,59599.0,59598.0,0.61613228]
[1724020178558,0.50743559,59599.0,59598.0,0.69803228]
[1724020179395,0.50743559,59599.0,59598.0,0.73194325]
[1724020180008,0.50743559,59599.0,59598.0,0.69803228]
[1724020180411,0.50743559,59599.0,59598.0,0.74118853]
[1724020181623,0.64623559,59599.0,59598.0,0.02886528]
[1724020182247,0.64523559,59599.0,59598.0,0.01486528]
[1724020182453,0.76268659,59599.0,59598.0,0.01486528]
[1724020182648,0.64623559,59599.0,59598.0,0.02386528]
[1724020183047,0.64523559,59599.0,59598.0,0.01486528]
[1724020183182,0.64523559,59599.0,59598.0,0.01986528]
[1724020183607,0.64523559,59599.0,59598.0,0.00586528]
[1724020183808,0.64523559,59599.0,59598.0,0.01286528]
[1724020184200,0.64523559,59599.0,59598.0,0.00086528]
[1724020184574,0.64523559,59599.0,59598.0,0.00586528]
[1724020185104,0.64523559,59599.0,59598.0,0.00886528]
[1724020185510,0.64523559,59599.0,59598.0,0.00586528]
[1724020185947,0.64523559,59599.0,59598.0,0.00886528]
[1724020186707,0.64523559,59599.0,59598.0,0.00386528]
[1724020187088,0.64523559,59599.0,59598.0,0.00886528]
[1724020187515,0.76268659,59599.0,59598.0,0.00886528]
[1724020189123,1.46739559,59599.0,59598.0,0.00886528]
[1724020189325,1.54929559,59599.0,59598.0,0.00886528]
[1724020189527,1.46739559,59599.0,59598.0,0.00886528]
[1724020189933,1.54929559,59599.0,59598.0,0.00886528]
[1724020190857,1.55920731,59599.0,59598.0,0.00886528]
[1724020191114,1.55920731,59599.0,59598.0,0.00386528]
[1724020191324,1.56020731,59599.0,59598.0,0.00386528]
[1724020191524,1.55920731,59599.0,59598.0,0.00386528]
[1724020191699,1.55920731,59599.0,59598.0,0.00086528]
[1724020191930,1.73076185,59599.0,59598.0,0.00086528]
[1724020192130,1.73976185,59599.0,59598.0,0.00286528]
[1724020192333,1.56820731,59599.0,59598.0,0.00286528]
[1724020192484,1.47830731,59599.0,59598.0,0.00186528]
[1724020192871,1.49030731,59599.0,59598.0,0.00286528]
[1724020193079,1.49030731,59599.0,59598.0,0.00186528]
[1724020193293,1.48930731,59599.0,59598.0,0.00186528]
[1724020193511,1.49030731,59599.0,59598.0,0.00286528]
[1724020197523,1.48039559,59599.0,59598.0,0.00286528]
[1724020197728,1.24549259,59599.0,59598.0,0.00286528]
[1724020198764,1.23249259,59599.0,59598.0,0.00086528]
[1724020198960,1.23849259,59599.0,59598.0,0.00186528]
[1724020199403,1.23949259,59599.0,59598.0,0.00186528]
[1724020201121,1.00458959,59599.0,59598.0,0.00186528]
[1724020201326,0.51343559,59599.0,59598.0,0.00186528]
[1724020201740,0.63088659,59599.0,59598.0,0.00186528]
[1724020201965,1.00608959,59599.0,59598.0,0.00186528]
[1724020202403,0.99908959,59599.0,59598.0,0.00086528]
[1724020202598,0.76418659,59599.0,59598.0,0.00586528]
[1724020202807,0.99908959,59599.0,59598.0,0.00586528]
[1724020203007,1.23399259,59599.0,59598.0,0.00586528]
[1724020203743,1.23399259,59599.0,59598.0,0.00486528]
[1724020203947,1.23399259,59599.0,59598.0,0.00086528]
[1724020204184,1.23499259,59599.0,59598.0,0.00086528]
[1724020204442,1.00008959,59599.0,59598.0,0.00186528]
[1724020204692,0.99908959,59599.0,59598.0,0.00086528]
[1724020204866,1.00508959,59599.0,59598.0,0.00086528]
[1724020205552,1.00008959,59599.0,59598.0,0.00086528]
[1724020205784,1.00508959,59599.0,59598.0,0.00086528]
[1724020206014,1.00608959,59599.0,59598.0,0.00086528]
[1724020206944,1.00108959,59599.0,59598.0,0.00086528]
[1724020207453,1.00308959,59599.0,59598.0,0.00086528]
[1724020207881,1.00108959,59599.0,59598.0,0.00086528]
[1724020208090,1.23599259,59599.0,59598.0,0.00086528]
[1724020208263,1.23699259,59599.0,59598.0,0.00086528]
[1724020208667,1.23599259,59599.0,59598.0,0.00086528]
[1724020209079,1.23599259,59599.0,59598.0,0.00186528]
[1724020210080,1.47089559,59599.0,59598.0,0.00186528]
[1724020216569,1.48112193,59599.0,59598.0,0.00186528]
[1724020220173,1.52005479,59599.0,59598.0,0.00186528]
[1724020220536,2.11786079,59599.0,59598.0,0.00186528]
[1724020220744,2.11786079,59599.0,59594.0,0.0009064]
[1724020220745,1.057216,59595.0,59594.0,0.0009064]
[1724020220968,2.36718174,59595.0,59594.0,0.0009064]
[1724020221223,2.36718174,59595.0,59591.0,0.0002]
[1724020221224,0.909155,59592.0,59591.0,0.0002]
[1724020221471,2.16421786,59592.0,59591.0,0.0002]
[1724020221683,2.19016229,59592.0,59591.0,0.0002]
[1724020222103,0.005,59590.0,59571.0,0.0002]
[1724020222307,1.85626634,59590.0,59571.0,0.0002]
[1724020222515,2.17515956,59590.0,59571.0,0.0002]
[1724020222730,2.17810399,59590.0,59571.0,0.0002]
[1724020223153,2.41304199,59590.0,59571.0,0.0002]
[1724020223582,2.31310629,59590.0,59571.0,0.0002]
[1724020224217,2.32710629,59590.0,59571.0,0.0002]
[1724020224655,2.54055744,59590.0,59571.0,0.0002]
[1724020225093,2.41601502,59590.0,59571.0,0.0002]
[1724020226000,2.42602377,59590.0,59571.0,0.0002]
[1724020227980,2.35111504,59590.0,59571.0,0.0002]
[1724020228600,2.40102673,59590.0,59571.0,0.0002]
[1724020229422,1.87224418,59590.0,59571.0,0.0002]
[1724020229823,2.27873672,59590.0,59571.0,0.0002]
[1724020231502,2.27873672,59590.0,59572.0,0.0659]
[1724020231718,1.84924418,59590.0,59574.0,0.048]
[1724020232950,1.87224418,59590.0,59572.0,0.0659]
[1724020236285,1.86824418,59590.0,59572.0,0.0659]
[1724020236506,1.86824418,59590.0,59579.0,0.0654]
[1724020236979,2.10718218,59590.0,59571.0,0.0002]
[1724020237199,1.87224418,59590.0,59572.0,0.0654]
[1724020237473,2.04379872,59590.0,59572.0,0.0654]
[1724020238592,2.03979872,59590.0,59572.0,0.0654]
[1724020238839,1.74424418,59590.0,59583.0,0.0654]
[1724020239064,1.74424418,59590.0,59582.0,0.048]
[1724020239065,1.50930618,59590.0,59582.0,0.048]
[1724020239298,1.50930618,59590.0,59581.0,0.0654]
[1724020239782,1.50930618,59590.0,59571.0,0.0002]
[1724020239783,1.53730618,59590.0,59575.0,0.057053]
[1724020240048,1.53730618,59590.0,59575.0,0.009053]
[1724020240286,1.75424418,59590.0,59575.0,0.009053]
[1724020240767,1.85424418,59590.0,59575.0,0.009053]
[1724020241009,1.84024418,59590.0,59575.0,0.009053]
[1724020241245,2.03679872,59590.0,59589.0,0.0019064]
[1724020241476,2.02579872,59590.0,59589.0,0.0009064]
[1724020241911,2.04379872,59590.0,59589.0,0.0019064]
[1724020242197,2.03979872,59590.0,59589.0,0.0019064]
[1724020242421,2.02579872,59590.0,59589.0,0.0019064]
[1724020242892,2.04379872,59590.0,59589.0,0.0019064]
[1724020244346,2.03979872,59590.0,59589.0,0.0019064]
[1724020244594,2.12179872,59590.0,59589.0,0.0019064]
[1724020244832,2.12579872,59590.0,59589.0,0.0019064]
[1724020247359,2.36073672,59590.0,59589.0,0.0019064]
[1724020247595,2.39967571,59590.0,59589.0,0.0019064]
[1724020249324,2.22812117,59590.0,59589.0,0.0019064]
[1724020250330,1.95424418,59590.0,59589.0,0.0019064]
[1724020251341,1.95384023,59590.0,59589.0,0.0019064]
[1724020251811,1.99278631,59590.0,59589.0,0.0019064]
[1724020253971,2.22772431,59590.0,59589.0,0.0019064]
[1724020254201,2.39927885,59590.0,59589.0,0.0019064]
[1724020255414,2.22772431,59590.0,59589.0,0.0019064]
[1724020256291,1.99178631,59590.0,59589.0,0.0019064]
[1724020256509,1.99078631,59590.0,59589.0,0.0019064]
[1724020257297,1.90578631,59590.0,59589.0,0.0019064]
[1724020257545,1.90578631,59590.0,59589.0,0.0645064]
[1724020257546,1.48714831,59590.0,59589.0,0.0645064]
[1724020258493,1.40514831,59590.0,59589.0,0.0645064]
[1724020258717,1.50514831,59590.0,59589.0,0.0645064]
[1724020259145,1.50514831,59590.0,59589.0,0.0019064]
[1724020262171,1.46620223,59590.0,59589.0,0.0019064]
[1724020262597,1.50515928,59590.0,59589.0,0.0019064]
[1724020264756,1.88439901,59590.0,59589.0,0.0019064]
[1724020264995,2.0249584,59590.0,59589.0,0.0019064]
[1724020265208,1.90679728,59590.0,59589.0,0.0019064]
[1724020265413,1.98173636,59590.0,59589.0,0.0019064]
[1724020265628,2.00671606,59590.0,59589.0,0.0019064]
[1724020267160,2.00571606,59590.0,59589.0,0.0019064]
[1724020267368,2.00671606,59590.0,59589.0,0.0019064]
[1724020267581,1.90579728,59590.0,59589.0,0.0019064]
[1724020267797,2.00571606,59590.0,59589.0,0.0019064]
[1724020268008,1.67085928,59590.0,59589.0,0.0019064]
[1724020268223,1.50515928,59590.0,59589.0,0.0019064]
[1724020268703,1.12125548,59590.0,59589.0,0.0499064]
[1724020268925,1.12125548,59590.0,59589.0,0.1157064]
[1724020269549,1.10725548,59590.0,59589.0,0.1147064]
[1724020269992,1.11125548,59590.0,59589.0,0.1147064]
[1724020270199,1.10725548,59590.0,59589.0,0.1147064]
[1724020270817,1.09325548,59590.0,59589.0,0.1147064]
[1724020271256,1.10025548,59590.0,59589.0,0.1147064]
[1724020271672,1.09325548,59590.0,59589.0,0.1147064]
[1724020271880,1.09925548,59590.0,59589.0,0.1147064]
[1724020272345,0.75025243,59590.0,59589.0,0.1147064]
[1724020272543,1.10265943,59590.0,59589.0,0.1147064]
[1724020273636,1.09965943,59590.0,59589.0,0.1147064]
[1724020273850,1.09965943,59590.0,59589.0,0.1157064]
[1724020273851,1.09365943,59590.0,59589.0,0.1157064]
[1724020274272,1.09365943,59590.0,59589.0,0.1177064]
[1724020274690,1.09365943,59590.0,59589.0,0.1157064]
[1724020275126,1.09665943,59590.0,59589.0,0.1157064]
[1724020275981,1.09665943,59590.0,59589.0,0.1147064]
[1724020276246,1.09665943,59590.0,59589.0,0.1157064]
[1724020277714,1.09365943,59590.0,59589.0,0.1157064]
[1724020277928,0.86172143,59590.0,59589.0,0.1157064]
[1724020278567,1.09665943,59590.0,59589.0,0.0019064]
[1724020278779,1.32859743,59590.0,59589.0,0.0019064]
[1724020279005,1.32859743,59590.0,59589.0,0.0009064]
[1724020279221,1.32859743,59590.0,59589.0,0.0019064]
[1724020279644,1.32859743,59590.0,59589.0,0.0009064]
[1724020280302,1.93883543,59590.0,59589.0,0.0009064]
[1724020280522,2.04283543,59590.0,59589.0,0.0019064]
[1724020280734,2.07779052,59590.0,59589.0,0.0009064]
[1724020280949,2.15293977,59590.0,59589.0,0.0009064]
[1724020281161,2.56443231,59590.0,59589.0,0.0009064]
[1724020281408,2.32803942,59590.0,59589.0,0.0009064]
[1724020281629,2.42523842,59590.0,59589.0,0.0009064]
[1724020281840,2.43820905,59590.0,59589.0,0.0009064]
[1724020282048,2.43820905,59590.0,59589.0,0.0019064]
[1724020282497,2.43720905,59590.0,59589.0,0.0009064]
[1724020282761,2.15918779,59590.0,59589.0,0.0009064]
[1724020282975,2.18422902,59590.0,59589.0,0.0009064]
[1724020283192,2.10992542,59590.0,59589.0,0.0009064]
[1724020283405,2.17810847,59590.0,59589.0,0.0009064]
[1724020284054,2.18010847,59590.0,59589.0,0.0009064]
[1724020286545,2.10892542,59590.0,59589.0,0.0009064]
[1724020286973,2.18405443,59590.0,59589.0,0.0009064]
[1724020287178,2.18705443,59590.0,59589.0,0.0009064]
[1724020287386,2.11192542,59590.0,59589.0,0.0009064]
[1724020288019,2.34886342,59590.0,59589.0,0.0009064]
[1724020288234,2.52041796,59590.0,59589.0,0.0009064]
[1724020288452,2.6456327,59590.0,59589.0,0.0009064]
[1724020290244,2.47407816,59590.0,59589.0,0.0009064]
[1724020291748,2.47007816,59590.0,59589.0,0.0009064]
[1724020291965,2.46907816,59590.0,59589.0,0.0009064]
[1724020292173,2.47407816,59590.0,59589.0,0.0009064]
[1724020292584,2.34786342,59590.0,59589.0,0.0009064]
[1724020292812,2.47207816,59590.0,59589.0,0.0009064]
[1724020293226,2.34686342,59590.0,59589.0,0.0009064]
[1724020293656,2.47207816,59590.0,59589.0,0.0009064]
[1724020294073,2.34686342,59590.0,59589.0,0.0009064]
[1724020294285,2.11192542,59590.0,59589.0,0.0009064]
[1724020294719,2.28347996,59590.0,59589.0,0.0009064]
[1724020294926,2.38355715,59590.0,59589.0,0.0009064]
[1724020295621,2.52041796,59590.0,59589.0,0.0009064]
[1724020295825,2.47394247,59590.0,59589.0,0.0009064]
[1724020296034,2.34886342,59590.0,59589.0,0.0009064]
[1724020296237,2.47393961,59590.0,59589.0,0.0009064]
[1724020296682,2.33586342,59590.0,59589.0,0.0009064]
[1724020296889,2.34986342,59590.0,59589.0,0.0009064]
[1724020297094,2.51141796,59590.0,59589.0,0.0009064]
[1724020298574,2.52541796,59590.0,59589.0,0.0009064]
[1724020301580,2.6754827,59590.0,59589.0,4e-07]
[1724020301809,2.52541796,59590.0,59589.0,4e-07]
[1724020302020,2.6754827,59590.0,59589.0,4e-07]
[1724020302224,2.51141796,59590.0,59589.0,4e-07]
[1724020302735,2.52541796,59590.0,59589.0,4e-07]
[1724020303149,2.51141796,59590.0,59589.0,4e-07]
[1724020303617,2.35386342,59590.0,59589.0,4e-07]
[1724020303837,2.33986342,59590.0,59589.0,4e-07]
[1724020304253,2.35386342,59590.0,59589.0,4e-07]
[1724020304509,2.58880142,59590.0,59589.0,4e-07]
[1724020304719,2.82086616,59590.0,59589.0,4e-07]
[1724020304930,2.84235596,59590.0,59589.0,4e-07]
[1724020306268,2.58880142,59590.0,59589.0,4e-07]
[1724020306526,2.79370142,59590.0,59589.0,4e-07]
[1724020306953,2.94366047,59590.0,59589.0,4e-07]
[1724020308710,2.79370142,59590.0,59589.0,4e-07]
[1724020309800,2.05057641,59590.0,59589.0,4e-07]
[1724020310031,2.22686342,59590.0,59589.0,4e-07]
[1724020310508,2.35180974,59590.0,59589.0,4e-07]
[1724020310951,2.37480974,59590.0,59589.0,4e-07]
[1724020311182,2.47480974,59590.0,59589.0,4e-07]
[1724020314437,2.34986342,59590.0,59589.0,4e-07]
[1724020314861,2.47480974,59590.0,59589.0,4e-07]
[1724020315067,2.52141796,59590.0,59589.0,4e-07]
[1724020315696,2.64636044,59590.0,59589.0,4e-07]
[1724020315911,2.52141796,59590.0,59589.0,4e-07]
[1724020317381,2.75635596,59590.0,59589.0,4e-07]
[1724020318209,2.90629112,59590.0,59589.0,4e-07]
[1724020319303,3.30629112,59590.0,59589.0,4e-07]
[1724020319540,1.873145,59577.0,59576.0,0.009064]
[1724020319760,2.52020384,59577.0,59576.0,0.009064]
[1724020319963,2.59517356,59577.0,59576.0,0.009064]
[1724020320171,2.54320384,59577.0,59576.0,0.009064]
[1724020320373,2.64316507,59577.0,59576.0,0.009064]
[1724020320575,2.54320384,59577.0,59576.0,0.009064]
[1724020320811,2.63218545,59577.0,59576.0,0.009064]
[1724020321028,2.56678408,59577.0,59576.0,0.009064]
[1724020321237,2.55278408,59577.0,59576.0,0.009064]
[1724020321442,2.56679641,59577.0,59576.0,0.009064]
[1724020322069,2.57671299,59577.0,59576.0,0.009064]
[1724020322497,2.51572042,59577.0,59576.0,0.009064]
[1724020322905,2.55171764,59577.0,59576.0,0.009064]
[1724020323109,2.50172042,59577.0,59576.0,0.009064]
[1724020323333,2.57671299,59577.0,59576.0,0.009064]
[1724020323541,2.59071299,59577.0,59576.0,0.009064]
[1724020324585,2.50931299,59577.0,59576.0,0.009064]
[1724020324794,2.22842042,59577.0,59576.0,0.009064]
[1724020325002,2.04344725,59577.0,59576.0,0.009064]
[1724020325210,1.99343042,59577.0,59576.0,0.057064]
[1724020325869,1.99343042,59577.0,59576.0,0.121464]
[1724020325870,1.38152384,59577.0,59576.0,0.121464]
[1724020326123,1.35656875,59577.0,59576.0,0.121464]
[1724020326337,1.34256875,59577.0,59576.0,0.121464]
[1724020326548,1.35656875,59577.0,59576.0,0.121464]
[1724020326756,1.34256875,59577.0,59576.0,0.121464]
[1724020326961,1.32856875,59577.0,59576.0,0.121464]
[1724020327231,1.35456875,59577.0,59576.0,0.121464]
[1724020327446,1.44256875,59577.0,59576.0,0.121464]
[1724020328284,1.42856875,59577.0,59576.0,0.121464]
[1724020328516,1.43256875,59577.0,59576.0,0.121464]
[1724020328743,1.43956875,59577.0,59576.0,0.121464]
[1724020328953,0.86958875,59577.0,59576.0,0.121464]
[1724020329161,0.62759875,59577.0,59576.0,0.121464]
[1724020329369,0.51010375,59577.0,59576.0,0.121464]
[1724020329583,0.51010375,59577.0,59576.0,0.23896]
[1724020329584,0.51210375,59577.0,59576.0,0.23896]
[1724020329808,0.51210375,59577.0,59576.0,0.121464]
[1724020330035,0.51510375,59577.0,59576.0,0.23896]
[1724020330242,0.50610375,59577.0,59576.0,0.121464]
[1724020333581,0.62359875,59577.0,59576.0,0.121464]
[1724020333863,0.50610375,59577.0,59576.0,0.121464]
[1724020335551,0.50610375,59577.0,59576.0,0.23896]
[1724020335761,0.50610375,59577.0,59576.0,0.9644281]
[1724020335974,0.50610375,59577.0,59576.0,1.01477554]
[1724020336185,0.50610375,59577.0,59576.0,0.9644281]
[1724020336590,0.50337,59577.0,59576.0,0.9644281]
[1724020337039,0.50709511,59577.0,59576.0,0.9644281]
[1724020337248,0.50709511,59577.0,59576.0,0.7294351]
[1724020337909,0.50437,59577.0,59576.0,0.7294351]
[1724020338325,0.50709511,59577.0,59576.0,0.7294351]
[1724020338756,0.50809511,59577.0,59576.0,0.7294351]
[1724020339400,0.50809511,59577.0,59576.0,0.708946]
[1724020339618,0.50809511,59577.0,59576.0,1.10992694]
[1724020339619,0.44149511,59577.0,59576.0,1.10992694]
[1724020339836,0.36889705,59577.0,59576.0,1.13734646]
[1724020340069,0.00475367,59577.0,59576.0,1.64173682]
[1724020340288,0.00475367,59577.0,59576.0,1.59147448]
[1724020340504,0.00475367,59577.0,59576.0,1.64173682]
[1724020340505,0.002,59577.0,59576.0,1.64173682]
[1724020340715,0.002,59577.0,59576.0,1.59147448]
[1724020340925,0.001,59577.0,59576.0,1.62539007]
[1724020341139,0.001,59577.0,59576.0,1.43083553]
[1724020341323,0.002,59577.0,59576.0,0.96202694]
[1724020341604,0.001,59577.0,59576.0,0.96202694]
[1724020341812,0.000824,59589.0,59587.0,0.117474]
[1724020342222,0.00277781,59588.0,59583.0,0.234965]
[1724020342664,0.00277781,59588.0,59577.0,0.4667]
[1724020342665,0.00277781,59588.0,59581.0,0.234974]
[1724020342926,0.12025081,59588.0,59583.0,0.117481]
[1724020343154,0.117475,59587.0,59584.0,0.117481]
[1724020343627,0.00277611,59586.0,59584.0,0.117481]
[1724020343859,0.00277611,59586.0,59583.0,0.006]
[1724020344097,0.353239,59589.0,59584.0,0.117479]
[1724020344329,0.00277517,59585.0,59584.0,0.117479]
[1724020344551,0.620943,59588.0,59584.0,0.117479]
[1724020344759,0.620943,59588.0,59584.0,0.124479]
[1724020345017,0.00277704,59587.0,59585.0,0.117478]
[1724020346282,0.001,59586.0,59585.0,0.352436]
[1724020346494,0.00277704,59587.0,59586.0,0.117477]
[1724020346707,0.50347,59588.0,59586.0,0.117477]
[1724020346915,0.001,59587.0,59586.0,0.117477]
[1724020347117,0.50347,59588.0,59586.0,0.117477]
[1724020347118,0.49447,59588.0,59586.0,0.117477]
[1724020347318,0.49447,59588.0,59585.0,0.234958]
[1724020347319,0.49447,59588.0,59585.0,0.117479]
[1724020347530,0.001,59586.0,59585.0,0.127479]
[1724020347742,0.001,59586.0,59585.0,0.122479]
[1724020348304,0.001,59586.0,59585.0,0.117479]
[1724020348511,0.001,59586.0,59585.0,0.356437]
[1724020348669,0.001,59586.0,59585.0,0.591395]
[1724020348897,0.001,59586.0,59585.0,0.587395]
[1724020349342,0.002,59586.0,59585.0,0.594395]
[1724020349673,0.001,59586.0,59585.0,0.594395]
[1724020349876,0.001,59586.0,59585.0,0.604395]
[1724020349877,0.002,59586.0,59585.0,0.604395]
[1724020350078,0.00477685,59586.0,59585.0,0.604395]
[1724020350287,0.002,59586.0,59585.0,0.604395]
[1724020350489,0.00477685,59586.0,59585.0,0.604395]
[1724020350692,0.002,59586.0,59585.0,0.604395]
[1724020350888,0.00477883,59586.0,59585.0,0.604395]
[1724020351092,0.002,59586.0,59585.0,0.604395]
[1724020351291,0.00477883,59586.0,59585.0,0.604395]
[1724020351452,0.002,59586.0,59585.0,0.604395]
[1724020351656,0.00477883,59586.0,59585.0,0.604395]
[1724020351866,0.00478265,59586.0,59585.0,0.604395]
[1724020355236,0.00478265,59586.0,59585.0,0.60211199]
[1724020358253,0.00478265,59586.0,59585.0,0.62259949]
[1724020359282,0.76002965,59586.0,59585.0,0.017]
[1724020359484,0.99498365,59586.0,59585.0,0.017]
[1724020359683,1.22993765,59586.0,59585.0,0.017]
[1724020360472,0.99498365,59586.0,59585.0,0.017]
[1724020361452,0.85168365,59586.0,59585.0,0.017]
[1724020362081,0.49925265,59586.0,59585.0,0.017]
[1724020362296,0.49925265,59586.0,59585.0,0.369437]
[1724020362704,0.49925265,59586.0,59585.0,0.134479]
[1724020364286,0.49925265,59586.0,59585.0,0.15587364]
[1724020365066,0.49925265,59586.0,59585.0,0.39083164]
[1724020365298,0.49647,59586.0,59585.0,0.62578964]
[1724020365498,0.49923924,59586.0,59585.0,0.62578964]
[1724020367617,0.49923924,59586.0,59585.0,0.62578905]
[1724020367811,0.49923924,59586.0,59585.0,0.39083105]
[1724020370569,0.49923924,59586.0,59585.0,0.39083131]
[1724020371999,0.49923924,59586.0,59585.0,0.15587331]
[1724020375875,0.49923924,59586.0,59585.0,0.03839431]
[1724020376078,1.22632424,59586.0,59585.0,0.03839431]
[1724020376272,1.22632424,59586.0,59585.0,0.0179064]
[1724020376690,1.46127824,59586.0,59585.0,0.0179064]
[1724020377584,1.46210224,59586.0,59585.0,0.0179064]
[1724020377921,1.46210224,59586.0,59585.0,0.0109064]
[1724020377922,1.46110224,59586.0,59585.0,0.0109064]
[1724020378104,1.46210224,59586.0,59585.0,0.0109064]
[1724020378316,1.46110224,59586.0,59585.0,0.0009064]
[1724020378521,1.46010224,59586.0,59585.0,0.0029064]
[1724020378729,1.46010224,59586.0,59585.0,0.0009064]
[1724020378929,1.46610224,59586.0,59585.0,0.0019064]
[1724020379162,1.46910224,59586.0,59585.0,0.0019064]
[1724020379596,1.46910224,59586.0,59585.0,0.0009064]
[1724020379597,1.46310224,59586.0,59585.0,0.0009064]
[1724020379812,1.46010224,59586.0,59585.0,0.0009064]
[1724020380648,1.46410224,59586.0,59585.0,0.0009064]
[1724020381076,1.47010224,59586.0,59585.0,0.0009064]
[1724020381493,1.23514824,59586.0,59585.0,0.0009064]
[1724020381903,1.00019424,59586.0,59585.0,0.0009064]
[1724020382315,1.23114824,59586.0,59585.0,0.0009064]
[1724020382730,1.23614824,59586.0,59585.0,0.0009064]
[1724020383165,1.47110224,59586.0,59585.0,0.0009064]
[1724020383619,1.46610224,59586.0,59585.0,0.0009064]
[1724020384039,1.46910224,59586.0,59585.0,0.0009064]
[1724020387803,1.23414824,59586.0,59585.0,0.0009064]
[1724020388239,1.46910224,59586.0,59585.0,0.0009064]
[1724020388625,1.23414824,59586.0,59585.0,0.0009064]
[1724020388868,1.46910224,59586.0,59585.0,0.0009064]
[1724020390561,1.55110224,59586.0,59585.0,0.0009064]
[1724020391738,1.31614824,59586.0,59585.0,0.0009064]
[1724020392028,1.23414824,59586.0,59585.0,0.0009064]
[1724020392775,0.99919424,59586.0,59585.0,0.0009064]
[1724020393267,1.31614824,59586.0,59585.0,0.0009064]
[1724020395550,1.58110224,59586.0,59585.0,0.0009064]
[1724020395754,1.78694345,59586.0,59585.0,0.0009064]
[1724020396002,1.81821276,59586.0,59585.0,0.0009064]
[1724020396275,2.0641527,59586.0,59585.0,0.0009064]
[1724020396523,1.90603649,59586.0,59585.0,0.0009064]
[1724020396783,2.11103649,59586.0,59585.0,0.0009064]
[1724020397018,2.11203649,59586.0,59585.0,0.0009064]
[1724020397255,2.18712148,59586.0,59585.0,0.0009064]
[1724020397494,2.16108505,59586.0,59585.0,0.0009064]
[1724020397735,2.16208505,59586.0,59585.0,0.0009064]
[1724020397996,2.11203649,59586.0,59585.0,0.0009064]
[1724020398234,2.18912148,59586.0,59585.0,0.0009064]
[1724020398482,2.19175792,59586.0,59585.0,0.0009064]
[1724020399235,2.18875792,59586.0,59585.0,0.0009064]
[1724020399499,2.1610689,59586.0,59585.0,0.0009064]
[1724020399774,2.1550689,59586.0,59585.0,0.0009064]
[1724020400004,2.1650689,59586.0,59585.0,0.0009064]
[1724020400281,2.1660689,59586.0,59585.0,0.0009064]
[1724020400536,2.79863002,59586.0,59585.0,0.0009064]
[1724020400775,2.79863002,59586.0,59576.0,0.009064]
[1724020400776,1.408655,59577.0,59576.0,0.009064]
[1724020401021,1.97510931,59577.0,59576.0,0.009064]
[1724020401265,2.07285696,59577.0,59576.0,0.009064]
[1724020401535,2.14584999,59577.0,59576.0,0.009064]
[1724020401805,2.1708472,59577.0,59576.0,0.009064]
[1724020402089,2.3758472,59577.0,59576.0,0.009064]
[1724020402324,2.35083071,59577.0,59576.0,0.009064]
[1724020402804,2.30385696,59577.0,59576.0,0.009064]
[1724020403045,2.30085696,59577.0,59576.0,0.009064]
[1724020403284,2.02687265,59577.0,59576.0,0.009064]
[1724020403555,1.43244,59572.0,59571.0,0.0002]
[1724020403819,1.92691,59572.0,59571.0,0.0002]
[1724020404073,2.28765505,59572.0,59571.0,0.0002]
[1724020404554,2.33254857,59572.0,59571.0,0.0002]
[1724020404809,2.4235182,59572.0,59571.0,0.0002]
[1724020405300,2.38756511,59572.0,59571.0,0.0002]
[1724020405548,1.406512,59568.0,59552.0,0.51177509]
[1724020405778,2.023982,59568.0,59552.0,0.51177509]
[1724020405999,2.02668843,59568.0,59552.0,0.51177509]
[1724020407421,2.04068843,59568.0,59552.0,0.51177509]
[1724020408583,2.05089737,59568.0,59552.0,0.51177509]
[1724020409586,1.81587237,59568.0,59552.0,0.51177509]
[1724020409834,1.81587237,59568.0,59556.0,0.0193]
[1724020409835,1.60187237,59568.0,59556.0,0.0193]
[1724020410296,1.58787237,59568.0,59556.0,0.0193]
[1724020410535,1.57387237,59568.0,59556.0,0.0193]
[1724020410824,1.58787237,59568.0,59556.0,0.0193]